Cogmind - Beta 14 @@@ ROGUE MODE // 2024.08.08 @ 21:53:54 Player: TheProctologist Result: Self-destructed Performance ------------- Evolutions (1) 500 Regions Visited (2) 400 Robots Destroyed (21) 105 Value Destroyed (478) 478 Prototype IDs (0) 0 Alien Tech Used (0) 0 Bonus (0) 0 TOTAL SCORE: 1483 Bonus ------- None Cogmind --------- Core Integrity 389/400 Matter 254/300 Energy 126/160 System Corruption 4% Temperature Warm (121) Movement Treading (160) Location -9/Materials Parts ------- > --- POWER (1) -------- Light Nuclear Core > --- PROPULSION (2) --- Light Treads Improved Treads > --- UTILITY (4) ------ Improved Heat Sink Large Storage Unit Improved Terrain Scanner > --- WEAPON (2) ------- Particle Gun Assault Rifle > --- INVENTORY (15) --- Aluminum Leg Aluminum Leg Sensor Array Improved Terrain Scanner Improved Medium Laser Mining Laser Peak State ------------ > --- POWER ------------ Light Nuclear Core > --- PROPULSION ------- Light Treads Improved Treads > --- UTILITY ---------- Improved Heat Sink Large Storage Unit Improved Terrain Scanner > --- WEAPON ----------- Particle Gun Assault Rifle > --- INVENTORY -------- Aluminum Leg Aluminum Leg Sensor Array Improved Terrain Scanner Improved Medium Laser Mining Laser [Rating: 17] Favorites ----------- Power Ion Engine Engine Ion Engine Power Core Light Nuclear Core Propulsion Light Treads Treads Light Treads Utility Improved Terrain Scanner Device Improved Terrain Scanner Storage Small Storage Unit Weapon Assault Rifle Energy Gun Particle Gun Ballistic Gun Assault Rifle Build | -11 -10 -9 ------- Run | Yrd Mat Mat Slots Evolved 2 | . . 2 Power . | . . . Propulsion . | . . . Utility 2 | . . 2 Weapon . | . . . Parts Attached 16 | 7 3 6 Power 3 | 1 1 1 Engine 2 | 1 1 . Core 1 | . . 1 Reactor . | . . . Propulsion 4 | 2 . 2 Treads 4 | 2 . 2 Leg . | . . . Wheel . | . . . Hover . | . . . Flight . | . . . Utility 4 | 2 . 2 Device 2 | 1 . 1 Storage 2 | 1 . 1 Processor . | . . . Hackware . | . . . Protection . | . . . Artifact . | . . . Weapon 5 | 2 2 1 Energy Gun 2 | . 2 . Energy Cannon . | . . . Ballistic Gun 3 | 2 . 1 Ballistic Cannon . | . . . Launcher . | . . . Special Weapon . | . . . Impact Weapon . | . . . Slashing Weapon . | . . . Piercing Weapon . | . . . Special Melee Weapon . | . . . Unidentified Prototypes . | . . . Corrupted Parts 1 | . . 1 System Corruption 4 | . . 4 Parts Lost 4 | . . 4 Power 1 | . . 1 Propulsion 2 | . . 2 Utility . | . . . Weapon 1 | . . 1 Highest Loss Streak 4 | . . 4 To Critical Strikes . | . . . Average Slot Usage (%) 97 | . 100 86 Engine 13 | . 14 10 Treads 26 | . 28 21 Device 15 | . 14 21 Storage 13 | . 14 11 Energy Gun 10 | . 8 21 Ballistic Gun 16 | . 19 . Peak Build Rating 17 | 9 11 17 Average Rating 9 | 6 10 13 On Entrance 6 | . 9 11 Naked Turns . | . . . Heaviest Build 32 | 15 16 32 Greatest Support 40 | 40 40 40 Greatest Overweight (x) 10 | . . 10 Average Overweight (x) . | . . . Largest Inventory Capacity 15 | 8 8 15 Average Capacity 8 | 7 8 14 Most Carried 10 | 6 8 10 Average Carried 6 | 3 7 7 Final Capacity 15 | 8 8 15 Final Carried 8 | 6 8 6 Class Distribution -------------------- 86% | Mutant 13% | Scavenger-Mutant Dominant Class ---------------- Mutant | -10/Materials Scavenger-Mutant | -9/Materials Resources | -11 -10 -9 ----------- Run | Yrd Mat Mat Matter Collected 522 | 300 222 . Remotely . | . . . Salvage Created 806 | 92 664 50 Parts 49 | 9 36 4 Haulers Intercepted 2 | . 1 1 Recyclers Shooed 1 | . 1 . Parts Field Recycled . | . . . Retrieved Matter . | . . . Parts Self-Destructed . | . . . Prevented . | . . . Kills | -11 -10 -9 ------- Run | Yrd Mat Mat Combat Hostiles Destroyed 14 | . 14 . Guns 14 | . 14 . Classes Destroyed 5 | 1 4 . Tunneler 4 | 4 . . Hauler 2 | . 1 1 Recycler 1 | . 1 . Swarmer 3 | . 3 . Grunt 11 | . 11 . Best Kill Streak 4 | 2 4 1 Combat Bots Only 3 | . 3 . Max Kills in Single Turn 1 | 1 1 1 Gunslinging . | . . . Exploded . | . . . Melee . | . . . Uniques/NPCs Destroyed . | . . . Combat | -11 -10 -9 -------- Run | Yrd Mat Mat Hostile Shots Fired 82 | . 67 15 Missed 17 | . 15 2 Damage Taken 776 | . 611 165 Core 105 | . 94 11 Absorbed by Shields . | . . . Core Remaining (%) 81 | 100 62 . Volleys Fired 60 | 5 46 9 Largest 2 | 2 2 2 Hottest 105 | 40 105 105 Shots Fired 113 | 10 86 17 Gun 113 | 10 86 17 Cannon . | . . . Launcher . | . . . Special . | . . . Kinetic 76 | 10 64 2 Thermal 17 | . 8 9 Explosive . | . . . Electromagnetic 20 | . 14 6 Robot Hit Streak 8 | 7 8 4 Robot Miss Streak 3 | . 3 1 Penetration Max . | . . . Secondary Targets 2 | . 2 . Max Gunslinging Chain 1 | . 1 . Shots Hit Robots 77 | 7 59 11 Core Hits 31 | 4 24 3 Critical Kills 1 | . 1 . Critical Parts Destroyed . | . . . Critical Strikes 3 | . 2 1 Burn 2 | . 1 1 Destroy 1 | . 1 . Melee Attacks . | . . . Impact . | . . . Slashing . | . . . Piercing . | . . . Sneak Attacks . | . . . Combat Hostiles . | . . . Follow-up Attacks . | . . . Damage Inflicted 1119 | 105 834 180 Guns 1084 | 97 807 180 Cannons . | . . . Explosions 22 | . 22 . Melee . | . . . Ramming 13 | 8 5 . Kinetic 718 | 97 596 25 Thermal 168 | . 91 77 Explosive . | . . . Electromagnetic 220 | . 142 78 Impact . | . . . Slashing . | . . . Piercing . | . . . Highest Corruption 4 | . . 4 Average Corruption 4 | . . 4 Corruption Purged . | . . . Corruption Blocked . | . . . Effects 1 | . . 1 Heat Flow Errors 1 | . . 1 Overload Shots . | . . . Overflow Damage . | . . . Projectiles . | . . . Explosions . | . . . Melee . | . . . Knockbacks . | . . . Impact . | . . . Kinetic . | . . . Secondary . | . . . Self-Inflicted Damage 30 | . 30 . Shots 1 | . 1 . Rammed 5 | 3 2 . Targets Rammed 6 | 3 3 . Kicked . | . . . Crushed 1 | . 1 . Highest Temperature 306 | . 306 7 Average Temperature 83 | . 87 4 Received Heat Transfer 375 | . 291 84 Effects 2 | . 2 . Interference 2 | . 2 . Siege Activations . | . . . Robots Corrupted . | . . . Combat Hostiles . | . . . Parts Fried . | . . . Impact Corruptions . | . . . Robots Melted . | . . . Combat Hostiles . | . . . Parts Melted 1 | . 1 . Heat Transferred 531 | . 272 259 Parts Sabotaged . | . . . Parts Stolen . | . . . Parts Stripped . | . . . Power Chain Reactions 1 | . 1 . Alert | -11 -10 -9 ------- Run | Yrd Mat Mat Peak Influence 307 | 20 307 114 Initial 92 | . 13 92 Average 102 | 9 144 93 Maximum Alert Level 1 | . 1 . Low Security (%) 82 | 100 70 100 Level 1 17 | . 29 . Level 2 . | . . . Level 3 . | . . . Level 4 . | . . . Level 5 . | . . . High Security . | . . . Max Security . | . . . Squads Dispatched 3 | . 3 . Investigation 1 | . 1 . Extermination . | . . . Reinforcement 2 | . 2 . Assault . | . . . Garrison . | . . . Intercept . | . . . Searches Triggered . | . . . Construction Impeded . | . . . Haulers Reinforced . | . . . Active Scanning Responses . | . . . Cargo Convoy Interrupts . | . . . Stealth | -11 -10 -9 --------- Run | Yrd Mat Mat Distress Signals 1 | . . 1 Communications Jammed . | . . . Distress Signals . | . . . Times Spotted 20 | . 17 3 Peak Tracking Total 5 | . 5 3 Tactical Retreats . | . . . Traps | -11 -10 -9 ------- Run | Yrd Mat Mat Traps Triggered . | . . . Indirectly . | . . . Trap Hack Attempts . | . . . Triggered . | . . . Disarmed . | . . . Reprogrammed . | . . . Reused . | . . . Traps Extracted . | . . . Installed . | . . . Triggered . | . . . Machines | -11 -10 -9 ---------- Run | Yrd Mat Mat Machines Disabled 1 | . 1 . Max in Single Turn 1 | . 1 . Machines Repaired . | . . . Machines Dismantled . | . . . Machines Sabotaged . | . . . Overloaded Fab Kills . | . . . Hacking | -11 -10 -9 --------- Run | Yrd Mat Mat Machines Accessed 5 | . 5 . Terminals 5 | . 5 . Fabricators . | . . . Repair Stations . | . . . Recycling Units . | . . . Scanalyzers . | . . . Garrison Access . | . . . Total Hacks 11 | . 11 . Successful 8 | . 8 . Failed 3 | . 3 . Catastrophic . | . . . Database Lockouts . | . . . Manual 6 | . 6 . Terminals 11 | . 11 . Fabricators . | . . . Repair Stations . | . . . Recycling Units . | . . . Scanalyzers . | . . . Garrison Access . | . . . Terminal Hacks 8 | . 8 . Robot Analysis 1 | . 1 . Emergency Access Points 1 | . 1 . Alert Level 2 | . 2 . Transport Status 1 | . 1 . Registered Components 1 | . 1 . Zone Layout 2 | . 2 . Fabricator Hacks . | . . . Repair Station Hacks . | . . . Recycling Unit Hacks . | . . . Scanalyzer . | . . . Garrison Access Hacks . | . . . Unauthorized Hacks . | . . . Terminals . | . . . Fabricators . | . . . Repair Stations . | . . . Recycling Units . | . . . Scanalyzers . | . . . Garrison Access . | . . . Data Cores Recovered . | . . . Used . | . . . Hacking Detections 4 | . 4 . Full Trace Events 1 | . 1 . Feedback Events . | . . . Feedback Blocked . | . . . Robot Schematics Acquired . | . . . Robots Built . | . . . Authchips . | . . . Time . | . . . Total Robot Build Rating . | . . . Part Schematics Acquired . | . . . Parts Built . | . . . Authchips . | . . . Time . | . . . Total Part Build Rating . | . . . Parts Repaired . | . . . Time . | . . . Parts Recycled . | . . . Recycled Matter . | . . . Retrieved Matter . | . . . Retrieved Components . | . . . Parts Scanalyzed . | . . . Part Schematics Acquired . | . . . Parts Damaged . | . . . Bothacking | -11 -10 -9 ------------ Run | Yrd Mat Mat Used RIF Installer . | . . . Robots Hacked . | . . . Non-combat . | . . . Combat . | . . . Robot Hacks Applied . | . . . Relay Couplers Released . | . . . Fabnet Peak Effective % . | . . . Robots Rewired . | . . . Allies Hacked . | . . . Hacks Repelled . | . . . Allies | -11 -10 -9 -------- Run | Yrd Mat Mat Total Allies . | . . . Largest Group . | . . . Highest-Rated Group . | . . . Highest-Rated Ally . | . . . Total Orders . | . . . Ally Attacks . | . . . Total Damage . | . . . Kills . | . . . Allies Corrupted . | . . . Allies Melted . | . . . Intel | -11 -10 -9 ------- Run | Yrd Mat Mat Robot Analysis Total 1 | . 1 . Derelict Logs Recovered . | . . . Drone Launches . | . . . Drone Recoveries . | . . . Exploration | -11 -10 -9 ------------- Run | Yrd Mat Mat Turns Passed 889 | 227 532 130 Spaces Moved 404 | 122 228 54 Core 4 | 3 . 1 Treads 400 | 119 228 53 Legs . | . . . Wheels . | . . . Hover . | . . . Flight . | . . . Fastest Speed 50 | 50 160 160 Average Speed 160 | 157 160 173 Slowest Speed 550 | 160 160 550 Overloaded Moves . | . . . Propulsion Burnouts . | . . . Robots Hopped . | . . . Cave-ins Triggered . | . . . Exploration Rate (%) 18 | 5 43 7 Regions Visited 2 Branch Regions . Pre-discovered Areas . | . . . Known Exits Taken . | . . . Unknown Exits Taken 2 | 1 1 . Scrap Searched . | . . . Spaces Dug . | . . . Terrain Destroyed 1 | . 1 . Melee . | . . . Projectile . | . . . AOE 1 | . 1 . Terrain Rammed . | . . . Walls Destroyed . | . . . Machines Disabled . | . . . Actions | -11 -10 -9 --------- Run | Yrd Mat Mat Total 526 | 142 310 74 Wait 21 | . 21 . Move 402 | 121 227 54 Hop . | . . . Pick Up 14 | 6 5 3 Fast Attach 10 | 7 2 1 Attach 6 | . 1 5 Detach 1 | . . 1 Swap . | . . . Drop 6 | . 5 1 Fire 60 | 5 46 9 Melee . | . . . Ram . | . . . Kick . | . . . Crush 6 | 3 3 . Escape Stasis . | . . . Rewire . | . . . Trap . | . . . Miscellaneous . | . . . Route ------- -11/Scrapyard -10/Materials (discovered 2 exits: [*Mat] / [Min]) -9/Materials History --------- Turn | Location | Event 44 | -11/Scrapyard | Discovered new exit (range 15) 228 | -11/Scrapyard | Entered Materials 305 | -10/Materials | Build established: Mutant 474 | -10/Materials | Discovered new exit (range 10) 714 | -10/Materials | Discovered new exit (range 14) 760 | -10/Materials | Entered another Materials area 760 | -9/Materials | Evolved 2 slots: Utility x2 890 | -9/Materials | Self-destructed Last Messages --------------- 00800_ K-01 Serf cleans the Electrolysis Chamber. 00851_ W-16 Scout sends out distress signal. 00852_ W-16 Scout suffers critical hit (Burn). 00858_ A-02 Transporter destroyed. 00861_ Critical hit (Burn: +37). 00861_ Lgt. Treads destroyed. 00864_ Acquired Prototype Energy Gun. 00867_ Acquired Corrupted Lgt. Treads. 00869_ K-01 Serf collects debris. 00871_ R-06 Scavenger collects Prototype Energy Gun. 00873_ Lgt. Treads destroyed. 00873_ K-01 Serf collects debris. 00879_ Integrated Corrupted Lgt. Treads (+4). 00880_ EM Pulse Gun destroyed. 00882_ K-01 Serf collects debris. 00882_ Ion Engine destroyed. 00885_ K-01 Serf collects debris. 00890_ System corrupted: Heat flow error (+115). Map ----- +----------------------------------------------------+ | ?????????????????"" #### ##??????? | | ??????????????? #??????? | | ??????????????? #??????? | | ??????????????? #?????#? | | ????????????????#+#############/#######??#? | | ??????????????????????????????# #??#?# | | ?????????????????"?"??????????# #????? | | ????????????????????? ????????# """ #????? | | ????????????????????????"?????# """ #????? | | ??????????????????????????????# """ #????? | | ??????????????????????????????# #????? | | ??????????????????????????????####+###????? | | ?????????????????????????????#???# #???#??? | | ???????????????????????###????#??# #???#??? | | ?????????????????????????????????# #??????? | | ???????????????#????????#????????# #??????? | | ?????????????????????????????????# #?????#? | | ?????????????????????????????????# #??????? | | ?????????????????????????? ??????# #??????? | | ????????????#?????????????? ?????# #??"???? | | ????????????# ????????? ???????"?# #??????? | | ????????????# ?????????????????# #????? ? | | ??????????? + ????????? ?????# #???? ?? | | ????????????# ????####+###?# #??????? | | ????????????# ??# #?# #?? ???? | | ????????????# #@ ### ##?????? | | ????????????# %gt! #? ???? | | ????????????# w #[ T +?? ??? | | ????????????# Y #### # ????? | | ??????????? + ?# #??? #?????# | | ???????????## ??### ###???+#?????# | | ????????????# ????# #????????????? | | ????????????#########?????# #?? ?????????? | | ??????????????????????????# #????????????? | | ??????????????????????????# #? ???? ?? ??? | | ????????????? ???????????? #????????????? | | ????????????????????????? ????????????# | | ???????????????????+?????## #???????? ???? | | ??????????????????????????# #????????????? | | ??????????????????????????# #????????????? | | ?????????????????????????? [ ????????????? | | ??????????????????????????? ?????????????? | | ??????????????????????????????????????????? | | ??????????????????????????????????????????? | | ??????????????????????????????????????????? | | ??????????????????????????????????????????? | | ??????????????????????????????????????????? | | ??????????????????????????????????????????? | | ??????????????????????????????????????????? | | ??????????????????????????????????????????? | +----------------------------------------------------+ Best States ------------- Heat Dissipation 42 Energy Generation 14 Energy Capacity 250 Matter Stores 300 Matter Capacity 300 Sight Range 16 Terrain Scan Range 16 Terrain Scan Density 10 Evasion (%) 40 Recoil Reduction 2 Item Schematics ----------------- None Robot Schematics ------------------ None Fabricated ------------ Nothing Alien Tech Used ----------------- None Achievements -------------- None Challenges ------------ None Game ------ Seed ProcessingCommDiverter Manual? 0 Play Time 00:16:03 Cumulative 15.5 hours Start 2024.08.08 @ 21:39:34 End 2024.08.08 @ 21:53:54 Sessions 1 Manual Loads 0 Difficulty Rogue Special Mode None Game No. 20 Rogue 20 Adventurer 0 Explorer 0 Win Type - Total 0 Types 0/0/0/0/0/0/0/0/0 Lore% 7 Gallery% 15 Achievement% 13 Wizard Run 0 Options --------- Layout 1 ASCII 0 Keyboard 0 Movement Numpad Keybinds 0 Fullscreen 1 Font 32/SmallcapsGlow Map View 50x40 Zoom Use 34% Tactical HUD 1 Map Filters NONE Filters NONE Steam 1 RUN: e46dbad8-2584-408b-ae63-e80a16793e0f